[Event "Nové Hrady - Rapid A"]
[Site "Nové Hrady, Czech Republic"]
[Date "2023.08.12"]
[Round "5.5"]
[White "Slabý, Matěj"]
[Black "Urban, Zdeněk"]
[Result "0-1"]
[TimeControl "2x20min+5s"]
[WhiteFideId "23734876"]
[BlackFideId "312754"]
[WhiteElo "1944"]
[BlackElo "2048"]

1. e4 {[%clk 00:20:05]} {[%emt 00:00:04]} c5 {[%clk 00:20:04]} {[%emt
00:00:07]} 2. Nf3 {[%clk 00:20:05]} {[%emt 00:00:05]} d6 {[%clk 00:20:07]}
{[%emt 00:00:02]} 3. Bb5+ {[%clk 00:20:07]} {[%emt 00:00:03]} Nd7 {[%clk
00:19:31]} {[%emt 00:00:40]} 4. d4 {[%clk 00:19:59]} {[%emt 00:00:14]} Qb6
{[%clk 00:18:42]} {[%emt 00:00:53]} 5. c4 {[%clk 00:19:24]} {[%emt 00:00:40]}
cxd4 {[%clk 00:18:27]} {[%emt 00:00:21]} 6. Nxd4 {[%clk 00:18:57]} {[%emt
00:00:32]} a6 {[%clk 00:17:42]} {[%emt 00:00:50]} 7. Bxd7+ {[%clk 00:18:56]}
{[%emt 00:00:05]} Bxd7 {[%clk 00:17:45]} {[%emt 00:00:02]} 8. Nc3 {[%clk
00:18:52]} {[%emt 00:00:11]} e6 {[%clk 00:17:09]} {[%emt 00:00:40]} 9. O-O
{[%clk 00:18:20]} {[%emt 00:00:37]} Nf6 {[%clk 00:17:02]} {[%emt 00:00:11]} 10.
Qd3 {[%clk 00:16:34]} {[%emt 00:01:52]} Be7 {[%clk 00:16:34]} {[%emt 00:00:32]}
11. Be3 {[%clk 00:16:26]} {[%emt 00:00:13]} Qc7 {[%clk 00:16:36]} {[%emt
00:00:03]} 12. Rac1 {[%clk 00:16:14]} {[%emt 00:00:18]} O-O {[%clk 00:16:28]}
{[%emt 00:00:13]} 13. Rfd1 {[%clk 00:14:19]} {[%emt 00:02:00]} Rac8 {[%clk
00:15:10]} {[%emt 00:01:23]} 14. b3 {[%clk 00:14:22]} {[%emt 00:00:02]} Qa5
{[%clk 00:13:10]} {[%emt 00:02:04]} 15. f3 {[%clk 00:13:42]} {[%emt 00:00:46]}
Rfd8 {[%clk 00:13:09]} {[%emt 00:00:06]} 16. Qd2 {[%clk 00:12:44]} {[%emt
00:01:03]} Be8 {[%clk 00:11:59]} {[%emt 00:01:13]} 17. Nd5 {[%clk 00:09:02]}
{[%emt 00:03:49]} Qxd2 {[%clk 00:12:01]} {[%emt 00:00:02]} 18. Nxe7+ {[%clk
00:09:05]} {[%emt 00:00:03]} Kf8 {[%clk 00:12:06]} 19. Rxd2 {[%clk 00:09:07]}
{[%emt 00:00:03]} Kxe7 {[%clk 00:12:09]} 20. Rcd1 {[%clk 00:09:05]} {[%emt
00:00:09]} h6 {[%clk 00:11:13]} {[%emt 00:01:00]} 21. Kf2 {[%clk 00:07:11]}
{[%emt 00:02:00]} Bd7 {[%clk 00:10:44]} {[%emt 00:00:33]} 22. Ne2 {[%clk
00:06:56]} {[%emt 00:00:20]} Bc6 {[%clk 00:10:30]} {[%emt 00:00:20]} 23. a4
{[%clk 00:06:42]} {[%emt 00:00:19]} Bxe4 {[%clk 00:07:51]} {[%emt 00:02:44]} 24.
Bb6 {[%clk 00:06:24]} {[%emt 00:00:23]} Rd7 {[%clk 00:07:53]} {[%emt 00:00:02]}
25. fxe4 {[%clk 00:06:18]} {[%emt 00:00:12]} Nxe4+ {[%clk 00:07:57]} 26. Ke3
{[%clk 00:06:21]} {[%emt 00:00:03]} Nxd2 {[%clk 00:07:59]} {[%emt 00:00:02]} 27.
Rxd2 {[%clk 00:06:25]} f5 {[%clk 00:07:01]} {[%emt 00:01:04]} 28. Ba5 {[%clk
00:04:39]} {[%emt 00:01:52]} g5 {[%clk 00:04:27]} {[%emt 00:02:38]} 29. g3
{[%clk 00:04:42]} {[%emt 00:00:02]} d5 {[%clk 00:04:15]} {[%emt 00:00:17]} 30.
cxd5 {[%clk 00:04:21]} {[%emt 00:00:26]} Rxd5 {[%clk 00:04:17]} {[%emt
00:00:03]} 31. Bb4+ {[%clk 00:04:12]} {[%emt 00:00:15]} Kf7 {[%clk 00:04:11]}
{[%emt 00:00:08]} 32. Rxd5 {[%clk 00:04:15]} {[%emt 00:00:05]} exd5 {[%clk
00:04:15]} 33. Nc3 {[%clk 00:03:56]} {[%emt 00:00:25]} Ke6 {[%clk 00:03:53]}
{[%emt 00:00:26]} 34. Kd4 {[%clk 00:04:00]} {[%emt 00:00:02]} b6 {[%clk
00:03:57]} 35. Ba3 {[%clk 00:03:29]} {[%emt 00:00:37]} h5 {[%clk 00:03:45]}
{[%emt 00:00:16]} 36. Bc1 {[%clk 00:03:31]} {[%emt 00:00:03]} Rg8 {[%clk
00:03:43]} {[%emt 00:00:06]} 37. Be3 {[%clk 00:03:27]} {[%emt 00:00:11]} h4
{[%clk 00:03:43]} {[%emt 00:00:05]} 38. Kd3 {[%emt 00:00:28]} f4 {[%emt
00:00:49]} 39. gxf4 {[%clk 00:02:39]} {[%emt 00:00:02]} g4 {[%emt 00:00:32]} 40.
Ne2 {[%emt 00:01:02]} g3 {[%emt 00:00:24]} 41. hxg3 {[%emt 00:00:09]} h3 {[%clk
00:02:30]} {[%emt 00:00:06]} 42. Bg1 {[%clk 00:01:52]} Kf5 {[%clk 00:02:29]}
{[%emt 00:00:05]} 43. Nd4+ {[%clk 00:00:08]} {[%emt 00:01:50]} Kg4 {[%clk
00:02:32]} {[%emt 00:00:02]} 44. Bh2 {[%clk 00:00:12]} {[%emt 00:00:01]} Rc8
{[%clk 00:02:14]} {[%emt 00:00:22]} 45. f5 {[%clk 00:00:11]} {[%emt 00:00:07]}
Kg5 {[%emt 00:00:23]} 46. g4 {[%clk 00:00:08]} {[%emt 00:00:04]} Rc1 {[%emt
00:00:12]} 47. Ke3 {[%clk 00:00:07]} {[%emt 00:00:03]} Kxg4 {[%clk 00:01:53]}
{[%emt 00:00:08]} 48. f6 {[%clk 00:00:08]} {[%emt 00:00:04]} Rf1 {[%clk
00:01:06]} {[%emt 00:00:50]} 49. Ne2 {[%clk 00:00:07]} {[%emt 00:00:08]} Rxf6
{[%clk 00:01:04]} {[%emt 00:00:07]} 50. Nc3 {[%clk 00:00:09]} {[%emt 00:00:03]}
Rf3+ {[%emt 00:00:09]} 51. Kd4 {[%emt 00:00:02]} Rf2 {[%clk 00:01:02]} {[%emt
00:00:02]} 52. Bb8 {[%clk 00:00:15]} {[%emt 00:00:03]} Rd2+ {[%clk 00:00:42]}
{[%emt 00:00:23]} 53. Ke3 {[%clk 00:00:17]} {[%emt 00:00:05]} h2 {[%clk
00:00:43]} {[%emt 00:00:03]} 54. Bxh2 {[%clk 00:00:19]} {[%emt 00:00:03]} Rxh2
{[%clk 00:00:47]} {[%emt 00:00:01]} 55. Kd4 {[%clk 00:00:14]} {[%emt 00:00:11]}
Rd2+ {[%clk 00:00:41]} {[%emt 00:00:09]} 56. Ke3 {[%clk 00:00:16]} {[%emt
00:00:05]} Rb2 {[%clk 00:00:42]} {[%emt 00:00:04]} 57. Nxd5 {[%clk 00:00:18]}
{[%emt 00:00:03]} Rxb3+ {[%clk 00:00:45]} {[%emt 00:00:02]} 58. Kd4 {[%clk
00:00:21]} {[%emt 00:00:02]} 0-1

[Event "Nové Hrady - Rapid A"]
[Site "Nové Hrady, Czech Republic"]
[Date "2023.08.12"]
[Round "5.6"]
[White "Prinz, Hubert"]
[Black "Drda, Štěpán"]
[Result "1-0"]
[TimeControl "2x20min+5s"]
[WhiteFideId "1639447"]
[BlackFideId "23731567"]
[WhiteElo "2038"]
[BlackElo "1582"]

1. d4 {[%clk 00:20:09]} {[%emt 00:01:56]} c6 {[%clk 00:20:08]} {[%emt
00:00:02]} 2. Nf3 {[%clk 00:20:13]} d5 {[%clk 00:20:11]} {[%emt 00:00:03]} 3.
e3 {[%clk 00:20:17]} {[%emt 00:00:02]} Nf6 {[%clk 00:20:12]} {[%emt 00:00:04]}
4. Bd3 {[%clk 00:20:19]} {[%emt 00:00:02]} Bg4 {[%clk 00:20:13]} {[%emt
00:00:04]} 5. Nbd2 {[%clk 00:20:15]} {[%emt 00:00:10]} e6 {[%clk 00:20:15]}
{[%emt 00:00:02]} 6. c4 {[%clk 00:20:17]} {[%emt 00:00:03]} c5 {[%clk
00:20:01]} {[%emt 00:00:19]} 7. cxd5 {[%clk 00:20:06]} {[%emt 00:00:16]} Nxd5
{[%clk 00:20:02]} {[%emt 00:00:04]} 8. dxc5 {[%clk 00:19:56]} {[%emt 00:00:15]}
Bxf3 {[%clk 00:19:49]} {[%emt 00:00:17]} 9. Nxf3 {[%clk 00:19:40]} {[%emt
00:00:23]} Nc6 {[%clk 00:19:44]} {[%emt 00:00:09]} 10. O-O {[%clk 00:19:27]}
{[%emt 00:00:19]} Bxc5 {[%clk 00:19:44]} {[%emt 00:00:05]} 11. a3 {[%clk
00:19:20]} {[%emt 00:00:11]} O-O {[%clk 00:19:32]} {[%emt 00:00:16]} 12. Bxh7+
{[%clk 00:18:54]} {[%emt 00:00:32]} Kxh7 {[%clk 00:18:28]} {[%emt 00:01:09]} 13.
Qc2+ {[%clk 00:18:58]} Kg8 {[%clk 00:18:19]} {[%emt 00:00:16]} 14. Qxc5 {[%clk
00:19:01]} {[%emt 00:00:02]} Rc8 {[%clk 00:17:57]} {[%emt 00:00:27]} 15. Qb5
{[%clk 00:18:53]} {[%emt 00:00:12]} Qe7 {[%clk 00:17:38]} {[%emt 00:00:24]} 16.
e4 {[%clk 00:18:31]} {[%emt 00:00:27]} Nf6 {[%clk 00:17:15]} {[%emt 00:00:28]}
17. Bg5 {[%clk 00:18:26]} {[%emt 00:00:09]} Rc7 {[%clk 00:16:34]} {[%emt
00:00:47]} 18. e5 {[%clk 00:18:17]} {[%emt 00:00:14]} Nxe5 {[%clk 00:15:51]}
{[%emt 00:00:48]} 19. Qxe5 {[%clk 00:17:54]} {[%emt 00:00:28]} Rc5 {[%clk
00:15:52]} {[%emt 00:00:04]} 20. Bxf6 {[%clk 00:15:49]} {[%emt 00:02:11]} gxf6
{[%clk 00:15:21]} {[%emt 00:00:35]} 21. Qg3+ {[%clk 00:15:39]} {[%emt
00:00:14]} Kh8 {[%clk 00:15:20]} {[%emt 00:00:07]} 22. Qh4+ {[%clk 00:15:27]}
{[%emt 00:00:16]} Kg7 {[%clk 00:15:04]} {[%emt 00:00:22]} 23. Rae1 {[%clk
00:14:57]} {[%emt 00:00:35]} Rh8 {[%clk 00:14:46]} {[%emt 00:00:24]} 24. Qg3+
{[%clk 00:14:56]} {[%emt 00:00:05]} Kf8 {[%clk 00:14:43]} {[%emt 00:00:07]} 25.
Re4 {[%clk 00:14:39]} {[%emt 00:00:23]} f5 {[%clk 00:14:19]} {[%emt 00:00:28]}
26. Re5 {[%clk 00:14:10]} {[%emt 00:00:35]} Rg8 {[%clk 00:14:09]} {[%emt
00:00:16]} 27. Qf4 {[%clk 00:14:03]} {[%emt 00:00:12]} Rc6 {[%clk 00:13:15]}
{[%emt 00:00:59]} 28. Rfe1 {[%clk 00:13:39]} {[%emt 00:00:28]} Rg6 {[%clk
00:11:10]} {[%emt 00:02:10]} 29. g3 {[%clk 00:13:09]} {[%emt 00:00:35]} Qf6
{[%clk 00:10:53]} {[%emt 00:00:22]} 30. R5e2 {[%clk 00:12:45]} {[%emt
00:00:29]} b5 {[%clk 00:10:27]} {[%emt 00:00:31]} 31. Ne5 {[%clk 00:12:37]}
{[%emt 00:00:12]} 1-0

[Event "Nové Hrady - Rapid A"]
[Site "Nové Hrady, Czech Republic"]
[Date "2023.08.12"]
[Round "5.7"]
[White "Kukla, Josef"]
[Black "Martinkovič, Adam"]
[Result "0-1"]
[TimeControl "2x20min+5s"]
[WhiteFideId "23725869"]
[BlackFideId "23728019"]
[WhiteElo "1364"]
[BlackElo "1808"]

1. d4 {[%clk 00:20:03]} {[%emt 00:00:07]} c5 {[%clk 00:20:08]} {[%emt
00:00:02]} 2. Nf3 {[%clk 00:20:01]} {[%emt 00:00:08]} Nf6 {[%clk 00:20:11]}
{[%emt 00:00:02]} 3. Bf4 {[%clk 00:19:51]} {[%emt 00:00:15]} g6 {[%clk
00:19:47]} {[%emt 00:00:28]} 4. e3 {[%clk 00:19:49]} {[%emt 00:00:08]} Bg7
{[%clk 00:19:36]} {[%emt 00:00:16]} 5. c3 {[%clk 00:19:41]} {[%emt 00:00:13]}
cxd4 {[%clk 00:19:38]} {[%emt 00:00:02]} 6. cxd4 {[%clk 00:19:42]} {[%emt
00:00:05]} O-O {[%clk 00:19:38]} {[%emt 00:00:04]} 7. Be2 {[%clk 00:19:39]}
{[%emt 00:00:08]} Qb6 {[%clk 00:19:13]} {[%emt 00:00:30]} 8. Qc2 {[%clk
00:19:16]} {[%emt 00:00:28]} d5 {[%clk 00:18:37]} {[%emt 00:00:42]} 9. Nc3
{[%clk 00:19:04]} {[%emt 00:00:17]} Bf5 {[%clk 00:18:35]} {[%emt 00:00:06]} 10.
Qb3 {[%clk 00:18:48]} {[%emt 00:00:21]} Qxb3 {[%clk 00:18:14]} {[%emt
00:00:27]} 11. axb3 {[%clk 00:18:52]} Nc6 {[%clk 00:18:16]} {[%emt 00:00:04]}
12. O-O {[%clk 00:18:01]} {[%emt 00:00:55]} e6 {[%clk 00:16:32]} {[%emt
00:01:49]} 13. Nh4 {[%clk 00:17:43]} {[%emt 00:00:23]} Bc2 {[%clk 00:16:00]}
{[%emt 00:00:36]} 14. Bd1 {[%clk 00:17:42]} {[%emt 00:00:08]} Bd3 {[%clk
00:15:28]} {[%emt 00:00:36]} 15. Be2 {[%clk 00:17:29]} {[%emt 00:00:18]} Bxe2
{[%clk 00:15:07]} {[%emt 00:00:27]} 16. Nxe2 {[%clk 00:17:30]} {[%emt
00:00:04]} Ne4 {[%clk 00:14:57]} {[%emt 00:00:15]} 17. Nf3 {[%clk 00:17:09]}
{[%emt 00:00:26]} Rfc8 {[%clk 00:14:35]} {[%emt 00:00:24]} 18. Nc3 {[%clk
00:16:31]} {[%emt 00:00:46]} a6 {[%clk 00:13:20]} {[%emt 00:01:21]} 19. Nxe4
{[%clk 00:16:13]} {[%emt 00:00:22]} dxe4 {[%clk 00:13:23]} 20. Nd2 {[%clk
00:16:00]} {[%emt 00:00:19]} f5 {[%clk 00:13:23]} {[%emt 00:00:05]} 21. Rfc1
{[%clk 00:15:30]} {[%emt 00:00:35]} Nb4 {[%clk 00:13:06]} {[%emt 00:00:19]} 22.
Nc4 {[%clk 00:13:31]} {[%emt 00:02:08]} Nd3 {[%clk 00:12:01]} {[%emt 00:01:10]}
23. Rcb1 {[%clk 00:12:45]} {[%emt 00:00:50]} Rc6 {[%clk 00:11:36]} {[%emt
00:00:29]} 24. Bg5 {[%clk 00:11:48]} {[%emt 00:01:03]} Kf7 {[%clk 00:10:56]}
{[%emt 00:00:44]} 25. h3 {[%clk 00:09:21]} {[%emt 00:02:34]} b5 {[%clk
00:10:08]} {[%emt 00:00:53]} 26. Na5 {[%clk 00:08:50]} {[%emt 00:00:35]} Rc2
{[%clk 00:10:02]} {[%emt 00:00:11]} 27. Bh4 {[%clk 00:08:35]} {[%emt 00:00:20]}
e5 {[%clk 00:09:09]} {[%emt 00:00:58]} 28. dxe5 {[%clk 00:08:16]} {[%emt
00:00:24]} Bxe5 {[%clk 00:09:11]} {[%emt 00:00:02]} 29. Bg3 {[%clk 00:07:55]}
{[%emt 00:00:27]} Bxg3 {[%clk 00:08:07]} {[%emt 00:01:10]} 30. fxg3 {[%clk
00:07:50]} {[%emt 00:00:09]} Re2 {[%clk 00:08:10]} 31. Nc6 {[%clk 00:07:17]}
{[%emt 00:00:39]} Rxe3 {[%clk 00:07:49]} {[%emt 00:00:27]} 32. Kh2 {[%clk
00:06:55]} {[%emt 00:00:28]} Re2 {[%clk 00:07:22]} {[%emt 00:00:31]} 33. Ra2
{[%clk 00:06:11]} {[%emt 00:00:49]} Rc2 {[%clk 00:06:39]} {[%emt 00:00:44]} 34.
Nd4 {[%clk 00:05:58]} {[%emt 00:00:22]} Rc1 {[%clk 00:06:11]} {[%emt 00:00:32]}
35. Rxc1 {[%clk 00:05:34]} {[%emt 00:00:31]} Nxc1 {[%clk 00:06:13]} {[%emt
00:00:02]} 36. Ra1 {[%clk 00:05:22]} {[%emt 00:00:17]} Nd3 {[%clk 00:06:15]}
{[%emt 00:00:03]} 37. Nxb5 {[%clk 00:05:10]} {[%emt 00:00:17]} Nxb2 {[%clk
00:01:59]} {[%emt 00:04:21]} 38. Nc3 {[%clk 00:03:23]} {[%emt 00:01:52]} Nd3
{[%clk 00:01:53]} {[%emt 00:00:12]} 39. Kg1 {[%clk 00:02:57]} {[%emt 00:00:31]}
Rc8 {[%clk 00:01:37]} {[%emt 00:00:21]} 40. Ne2 {[%clk 00:02:38]} {[%emt
00:00:22]} Rc6 {[%clk 00:01:28]} {[%emt 00:00:15]} 41. Nf4 {[%clk 00:01:33]}
{[%emt 00:01:10]} Ne5 {[%clk 00:00:47]} {[%emt 00:00:47]} 42. Kf2 {[%clk
00:00:48]} {[%emt 00:00:50]} g5 {[%clk 00:00:40]} {[%emt 00:00:12]} 43. Nd5
{[%clk 00:00:38]} {[%emt 00:00:13]} Nd3+ {[%clk 00:00:40]} {[%emt 00:00:06]} 44.
Ke3 {[%clk 00:00:32]} {[%emt 00:00:11]} Ke6 {[%clk 00:00:39]} {[%emt 00:00:06]}
45. Rxa6 {[%emt 00:00:34]} 0-1

[Event "Nové Hrady - Rapid A"]
[Site "Nové Hrady, Czech Republic"]
[Date "2023.08.12"]
[Round "6.1"]
[White "Půlpán, Jakub"]
[Black "Babula, Milan"]
[Result "1/2-1/2"]
[TimeControl "2x20min+5s"]
[WhiteFideId "302759"]
[BlackFideId "300632"]
[WhiteElo "2515"]
[BlackElo "2212"]

1. Nf3 {[%clk 00:20:08]} {[%emt 00:00:02]} Nf6 {[%clk 00:20:07]} {[%emt
00:00:04]} 2. b3 {[%clk 00:20:12]} g6 {[%clk 00:20:09]} {[%emt 00:00:03]} 3.
Bb2 {[%clk 00:20:16]} Bg7 {[%clk 00:20:13]} 4. g3 {[%clk 00:20:20]} O-O {[%clk
00:20:15]} {[%emt 00:00:06]} 5. Bg2 {[%clk 00:20:24]} c5 {[%clk 00:20:12]}
{[%emt 00:00:10]} 6. c4 {[%clk 00:20:26]} {[%emt 00:00:03]} Nc6 {[%clk
00:20:08]} {[%emt 00:00:08]} 7. O-O {[%clk 00:20:23]} {[%emt 00:00:08]} d6
{[%clk 00:20:11]} {[%emt 00:00:02]} 8. d4 {[%clk 00:20:27]} {[%emt 00:00:02]}
cxd4 {[%clk 00:20:08]} {[%emt 00:00:07]} 9. Nxd4 {[%clk 00:20:30]} {[%emt
00:00:02]} Bd7 {[%clk 00:20:02]} {[%emt 00:00:10]} 10. Nc3 {[%clk 00:20:34]}
{[%emt 00:00:02]} Nxd4 {[%clk 00:18:54]} {[%emt 00:01:13]} 11. Qxd4 {[%clk
00:20:37]} {[%emt 00:00:02]} Bc6 {[%clk 00:18:57]} {[%emt 00:00:03]} 12. Nd5
{[%clk 00:20:40]} Bxd5 {[%clk 00:18:22]} {[%emt 00:00:40]} 13. Bxd5 {[%clk
00:20:43]} {[%emt 00:00:01]} Nh5 {[%clk 00:17:59]} {[%emt 00:00:29]} 14. Qd2
{[%clk 00:20:47]} {[%emt 00:00:02]} Bxb2 {[%clk 00:17:50]} {[%emt 00:00:13]} 15.
Qxb2 {[%clk 00:20:50]} {[%emt 00:00:02]} Qb6 {[%clk 00:17:54]} 16. Rfd1 {[%clk
00:20:51]} {[%emt 00:00:05]} Rac8 {[%clk 00:17:22]} {[%emt 00:00:37]} 17. Rd2
{[%clk 00:20:49]} {[%emt 00:00:06]} Nf6 {[%clk 00:17:02]} {[%emt 00:00:26]} 18.
Bf3 {[%clk 00:20:47]} {[%emt 00:00:06]} Rc5 {[%clk 00:16:43]} {[%emt 00:00:25]}
19. Rad1 {[%clk 00:20:49]} {[%emt 00:00:04]} Qc7 {[%clk 00:16:27]} {[%emt
00:00:20]} 20. h4 {[%clk 00:20:51]} {[%emt 00:00:04]} Rc8 {[%clk 00:15:10]}
{[%emt 00:01:22]} 21. a4 {[%clk 00:18:59]} {[%emt 00:01:57]} a5 {[%clk
00:15:05]} {[%emt 00:00:10]} 22. Rxd6 {[%clk 00:18:57]} {[%emt 00:00:07]} exd6
{[%clk 00:14:55]} {[%emt 00:00:14]} 23. Qxf6 {[%clk 00:18:59]} {[%emt
00:00:03]} Rf5 {[%clk 00:10:32]} {[%emt 00:04:28]} 24. Qxd6 {[%clk 00:17:49]}
{[%emt 00:01:15]} Qxd6 {[%clk 00:09:00]} {[%emt 00:01:37]} 25. Rxd6 {[%clk
00:17:52]} Rc7 {[%clk 00:09:04]} 26. Rb6 {[%clk 00:17:35]} {[%emt 00:00:25]}
Re5 {[%clk 00:08:41]} {[%emt 00:00:28]} 27. e3 {[%clk 00:17:33]} {[%emt
00:00:06]} Re6 {[%clk 00:08:34]} {[%emt 00:00:13]} 28. Rb5 {[%clk 00:17:03]}
{[%emt 00:00:35]} b6 {[%clk 00:08:33]} {[%emt 00:00:06]} 29. Rd5 {[%clk
00:17:01]} {[%emt 00:00:06]} Kf8 {[%clk 00:08:03]} {[%emt 00:00:35]} 30. Rd8+
{[%clk 00:16:53]} {[%emt 00:00:14]} Ke7 {[%clk 00:08:06]} 31. Rb8 {[%clk
00:16:54]} {[%emt 00:00:06]} Rd6 {[%clk 00:07:21]} {[%emt 00:00:51]} 32. Bd5
{[%clk 00:16:55]} {[%emt 00:00:03]} Rcd7 {[%clk 00:07:11]} {[%emt 00:00:15]} 33.
e4 {[%clk 00:16:56]} {[%emt 00:00:05]} Rd8 {[%clk 00:06:57]} {[%emt 00:00:19]}
34. Rb7+ {[%clk 00:16:51]} {[%emt 00:00:09]} R8d7 {[%clk 00:07:02]} 35. Rb8
{[%emt 00:00:29]} 1/2-1/2

[Event "Nové Hrady - Rapid A"]
[Site "Nové Hrady, Czech Republic"]
[Date "2023.08.12"]
[Round "6.2"]
[White "Pochinkov, Andrey"]
[Black "Hák, David"]
[Result "1-0"]
[TimeControl "2x20min+5s"]
[WhiteFideId "4146387"]
[BlackFideId "377007"]
[WhiteElo "2052"]
[BlackElo "2123"]

1. Nf3 {[%clk 00:20:08]} {[%emt 00:00:03]} d5 {[%clk 00:19:54]} {[%emt
00:00:17]} 2. d4 {[%clk 00:20:10]} {[%emt 00:00:02]} Nf6 {[%clk 00:19:48]}
{[%emt 00:00:11]} 3. e3 {[%clk 00:20:12]} {[%emt 00:00:03]} e6 {[%clk
00:19:37]} {[%emt 00:00:16]} 4. Bd3 {[%clk 00:20:14]} {[%emt 00:00:03]} c5
{[%clk 00:19:36]} {[%emt 00:00:05]} 5. c3 {[%clk 00:20:17]} {[%emt 00:00:02]}
Nc6 {[%clk 00:19:35]} {[%emt 00:00:07]} 6. Nbd2 {[%clk 00:20:16]} {[%emt
00:00:05]} b6 {[%clk 00:19:16]} {[%emt 00:00:25]} 7. O-O {[%clk 00:20:12]}
{[%emt 00:00:09]} Bd6 {[%clk 00:19:18]} {[%emt 00:00:03]} 8. e4 {[%clk
00:19:35]} {[%emt 00:00:41]} dxe4 {[%clk 00:18:19]} {[%emt 00:01:05]} 9. Nxe4
{[%clk 00:19:37]} {[%emt 00:00:03]} O-O {[%clk 00:15:34]} {[%emt 00:02:50]} 10.
Nxf6+ {[%clk 00:18:54]} {[%emt 00:00:48]} gxf6 {[%clk 00:15:21]} {[%emt
00:00:18]} 11. Nh4 {[%clk 00:17:50]} {[%emt 00:01:08]} f5 {[%clk 00:14:42]}
{[%emt 00:00:45]} 12. Qh5 {[%clk 00:17:45]} {[%emt 00:00:10]} cxd4 {[%clk
00:13:39]} {[%emt 00:01:08]} 13. Nf3 {[%clk 00:17:14]} {[%emt 00:00:35]} Be7
{[%clk 00:11:58]} {[%emt 00:01:48]} 14. Bh6 {[%clk 00:16:58]} {[%emt 00:00:19]}
Re8 {[%clk 00:09:51]} {[%emt 00:02:12]} 15. Bb5 {[%clk 00:16:53]} {[%emt
00:00:11]} Bd7 {[%clk 00:09:20]} {[%emt 00:00:36]} 16. Bxc6 {[%clk 00:16:52]}
{[%emt 00:00:06]} Bxc6 {[%clk 00:09:24]} 17. Ne5 {[%clk 00:16:54]} {[%emt
00:00:03]} Bf8 {[%clk 00:07:41]} {[%emt 00:01:48]} 18. Qxf7+ {[%clk 00:16:36]}
{[%emt 00:00:24]} Kh8 {[%clk 00:07:45]} 19. Nxc6 {[%clk 00:16:04]} {[%emt
00:00:37]} Qd6 {[%clk 00:06:34]} {[%emt 00:01:15]} 20. Qf6+ {[%clk 00:16:00]}
{[%emt 00:00:09]} Kg8 {[%clk 00:06:38]} 21. Bxf8 {[%clk 00:15:25]} {[%emt
00:00:41]} Rxf8 {[%clk 00:06:39]} {[%emt 00:00:05]} 22. Ne7+ {[%emt 00:00:03]}
Qd8 {[%emt 00:00:06]} 1-0